[Event "ONJK-A 2019"]
[Site "Borne"]
[Date "2019.08.07"]
[Round "4.7"]
[White "Albers, Sasa"]
[Black "Merkon, Oseb"]
[Result "1-0"]
[ECO "B22"]
[WhiteElo "1889"]
[BlackElo "2013"]
[Annotator "NA"]
[PlyCount "83"]
[EventDate "2019.08.05"]
[EventType "swiss"]
[EventCountry "NED"]
[SourceTitle "playchess.com"]
[Source "ChessBase"]
[SourceQuality "1"]
[TimeControl "5400+30"]

1. e4 {[%emt 0:00:00]} c5 {[%emt 0:00:00]} 2. Nf3 {[%emt 0:00:00]} Nc6 {[%emt 0:00:00]} 3. c3 {[%emt 0:00:00]} Nf6 {[%emt 0:00:00]} 4. e5 {[%emt 0:00:00]} Nd5 {[%emt 0:00:00]} 5. Bc4 {[%emt 0:00:00]} Nb6 {[%emt 0:00:00]} 6. Bb3 {[%emt 0:00:00]} c4 {[%emt 0:00:04]} 7. Bc2 {[%emt 0:00:00]} Qc7 {[%emt 0:00:08]} 8. Qe2 {[%emt 0:01:29]} g5 {[%emt 0:00:04]} 9. Nxg5 {[%emt 0:03:28]} Nxe5 {[%emt 0:00:20]} 10. Nf3 {[%emt 0:04:06]} Bg7 {[%emt 0:04:19]} 11. Nxe5 {[%emt 0:01:04]} Bxe5 {[%emt 0:03:25]} 12. d4 {[%emt 0:02:51]} Bf6 {[%emt 0:03:53]} 13. a4 {[%emt 0:04:04]} d5 {[%emt 0:09:05]} 14. g3 {[%emt 0:17:21]} Be6 {[%emt 0:07:02]} 15. Bf4 {[%emt 0:01:28]} Qd7 {[%emt 0:01:47]} 16. a5 {[%emt 0:00:08]} Nc8 {[%emt 0:00:04]} 17. Ba4 {[%emt 0:00:11]} b5 {[%emt 0:00:18]} 18. axb6 {[%emt 0:00:16]} Nxb6 {[%emt 0:00:18]} 19. Bxd7+ {[%emt 0:00:09]} Nxd7 {[%emt 0:00:39]} 20. Qc2 {[%emt 0:05:17]} Bg4 {[%emt 0:01:16]} 21. Nd2 {[%emt 0:00:11]} e5 {[%emt 0:00:28]} 22. Be3 {[%emt 0:02:56]} Bh3 {[%emt 0:02:19]} 23. f4 {[%emt 0:01:33]} exf4 {[%emt 0:00:58]} 24. Bxf4 {[%emt 0:00:12]} O-O {[%emt 0:00:18]} 25. Kf2 {[%emt 0:00:07]} Bg7 {[%emt 0:00:51]} 26. g4 {[%emt 0:04:53]} Bxg4 {[%emt 0:00:34]} 27. Rhg1 {[%emt 0:00:07]} Bh5 {[%emt 0:00:02]} 28. Qa4 {[%emt 0:05:11]} Nf6 {[%emt 0:00:25]} 29. Be5 {[%emt 0:02:11]} Ng4+ {[%emt 0:07:46]} 30. Rxg4 {[%emt 0:00:19]} Bxg4 {[%emt 0:00:01]} 31. Rg1 {[%emt 0:00:53]} f5 {[%emt 0:00:29]} 32. Bxg7 {[%emt 0:00:11]} Kxg7 {[%emt 0:00:03]} 33. h3 {[%emt 0:00:37]} Rae8 {[%emt 0:01:12]} 34. Nf3 {[%emt 0:00:17]} Re4 {[%emt 0:00:26]} 35. hxg4 {[%emt 0:00:42]} fxg4 {[%emt 0:00:23]} 36. Rxg4+ {[%emt 0:00:32]} Kh8 {[%emt 0:00:20]} 37. Qd7 {[%emt 0:00:49]} Rxg4 {[%emt 0:00:48]} 38. Qxg4 {[%emt 0:00:03]} Rb8 {[%emt 0:00:15]} 39. Ne5 {[%emt 0:00:16]} Rxb2+ {[%emt 0:00:12]} 40. Ke3 {[%emt 0:00:11]} h5 {[%emt 0:00:17]} 41. Qxh5+ {[%emt 0:00:08]} Kg7 {[%emt 0:00:08]} 42. Qg6+ {[%emt 0:00:05]} 1-0

[Event "ONJK-A 2019"]
[Site "Borne"]
[Date "2019.08.07"]
[Round "4.8"]
[White "Godde, Matthias"]
[Black "Hempler, Poul"]
[Result "1/2-1/2"]
[ECO "B10"]
[WhiteElo "1989"]
[BlackElo "1809"]
[Annotator "NA"]
[PlyCount "71"]
[EventDate "2019.08.05"]
[EventType "swiss"]
[EventCountry "NED"]
[SourceTitle "playchess.com"]
[Source "ChessBase"]
[SourceQuality "1"]
[TimeControl "5400+30"]

1. e4 {[%emt 0:00:00]} c6 {[%emt 0:00:00]} 2. d3 {[%emt 0:00:00]} d5 {[%emt 0:00:00]} 3. Nd2 {[%emt 0:00:00]} d4 {[%emt 0:07:04]} 4. g3 {[%emt 0:00:43]} c5 {[%emt 0:02:10]} 5. Bg2 {[%emt 0:03:23]} e5 {[%emt 0:00:30]} 6. Ne2 {[%emt 0:01:10]} Nc6 {[%emt 0:01:08]} 7. O-O {[%emt 0:00:16]} Nf6 {[%emt 0:01:37]} 8. h3 {[%emt 0:00:34]} Be6 {[%emt 0:04:50]} 9. f4 {[%emt 0:00:21]} Qc7 {[%emt 0:05:53]} 10. a4 {[%emt 0:01:01]} Be7 {[%emt 0:01:25]} 11. Nf3 {[%emt 0:01:10]} Bd6 {[%emt 0:01:36]} 12. Kh1 {[%emt 0:01:27]} h6 {[%emt 0:02:31]} 13. b3 {[%emt 0:01:40]} Nh5 {[%emt 0:05:15]} 14. f5 {[%emt 0:16:07]} Bd7 {[%emt 0:00:18]} 15. g4 {[%emt 0:01:00]} Nf6 {[%emt 0:01:11]} 16. Ng3 {[%emt 0:00:17]} O-O-O {[%emt 0:08:48]} 17. Nh5 {[%emt 0:01:30]} Nxh5 {[%emt 0:05:59]} 18. gxh5 {[%emt 0:00:08]} Be7 {[%emt 0:00:27]} 19. Rg1 {[%emt 0:03:27]} Rdg8 {[%emt 0:03:25]} 20. Bf1 {[%emt 0:04:39]} Be8 {[%emt 0:00:57]} 21. Nh2 {[%emt 0:01:01]} Kb8 {[%emt 0:05:41]} 22. Ng4 {[%emt 0:01:39]} Qd6 {[%emt 0:07:31]} 23. Qf3 {[%emt 0:01:23]} Bh4 {[%emt 0:05:22]} 24. f6 {[%emt 0:04:31]} Bxf6 {[%emt 0:00:56]} 25. Bxh6 {[%emt 0:00:59]} Bd8 {[%emt 0:09:19]} 26. Bd2 {[%emt 0:01:04]} f6 {[%emt 0:01:54]} 27. h6 {[%emt 0:00:50]} Bh5 {[%emt 0:02:18]} 28. hxg7 {[%emt 0:01:23]} Rxg7 {[%emt 0:01:21]} 29. Be2 {[%emt 0:04:44]} Qe6 {[%emt 0:02:33]} 30. Raf1 {[%emt 0:02:16]} Bxg4 {[%emt 0:01:02]} 31. Rxg4 {[%emt 0:00:48]} Rxg4 {[%emt 0:00:07]} 32. Qxg4 {[%emt 0:00:13]} Rxh3+ {[%emt 0:00:30]} 33. Kg2 {[%emt 0:00:11]} Qxg4+ {[%emt 0:00:34]} 34. Bxg4 {[%emt 0:00:01]} Rh7 {[%emt 0:00:46]} 35. Rf2 {[%emt 0:05:41]} Kc7 {[%emt 0:01:38]} 36. Bf5 {[%emt 0:01:21]} 1/2-1/2

[Event "ONJK-A 2019"]
[Site "Borne"]
[Date "2019.08.07"]
[Round "4.9"]
[White "Vleming, Stefan"]
[Black "De Vries, Tobias"]
[Result "1/2-1/2"]
[ECO "A52"]
[WhiteElo "1760"]
[BlackElo "1868"]
[Annotator "NA"]
[PlyCount "117"]
[EventDate "2019.08.05"]
[EventType "swiss"]
[EventCountry "NED"]
[SourceTitle "playchess.com"]
[Source "ChessBase"]
[SourceQuality "1"]
[TimeControl "5400+30"]

1. d4 {[%emt 0:00:00]} Nf6 {[%emt 0:00:00]} 2. c4 {[%emt 0:00:00]} e5 {[%emt 0:00:00]} 3. dxe5 {[%emt 0:00:51]} Ng4 {[%emt 0:00:00]} 4. Nf3 {[%emt 0:01:21]} Bc5 {[%emt 0:00:00]} 5. e3 {[%emt 0:01:36]} Nc6 {[%emt 0:00:18]} 6. Be2 {[%emt 0:04:55]} O-O {[%emt 0:01:01]} 7. O-O {[%emt 0:01:22]} Re8 {[%emt 0:02:26]} 8. b3 {[%emt 0:06:37]} Ngxe5 {[%emt 0:01:41]} 9. Bb2 {[%emt 0:00:56]} d6 {[%emt 0:01:18]} 10. Nc3 {[%emt 0:07:11]} a5 {[%emt 0:02:49]} 11. Qd2 {[%emt 0:08:41]} Ng4 {[%emt 0:24:59]} 12. Rad1 {[%emt 0:09:42]} Nxe3 {[%emt 0:06:40]} 13. Nd5 {[%emt 0:01:03]} Nxd1 {[%emt 0:01:09]} 14. Rxd1 {[%emt 0:00:03]} f6 {[%emt 0:27:07]} 15. Bd3 {[%emt 0:05:49]} Ne5 {[%emt 0:04:25]} 16. Bxe5 {[%emt 0:06:03]} Rxe5 {[%emt 0:07:40]} 17. Nxe5 {[%emt 0:08:56]} fxe5 {[%emt 0:00:09]} 18. Qe2 {[%emt 0:08:30]} g6 {[%emt 0:07:17]} 19. Qf3 {[%emt 0:04:17]} Kg7 {[%emt 0:00:40]} 20. Nc3 {[%emt 0:03:57]} Qf8 {[%emt 0:02:44]} 21. Qxf8+ {[%emt 0:02:33]} Kxf8 {[%emt 0:00:07]} 22. Ne4 {[%emt 0:00:57]} Bd4 {[%emt 0:02:02]} 23. Nf6 {[%emt 0:00:39]} h5 {[%emt 0:00:14]} 24. Nd5 {[%emt 0:01:50]} Bg4 {[%emt 0:01:48]} 25. Re1 {[%emt 0:01:06]} c6 {[%emt 0:02:15]} 26. Nf6 {[%emt 0:00:59]} Be6 {[%emt 0:00:18]} 27. Ne4 {[%emt 0:02:23]} Ke7 {[%emt 0:00:05]} 28. Ng5 {[%emt 0:01:13]} Bf5 {[%emt 0:00:57]} 29. Bxf5 {[%emt 0:00:26]} gxf5 {[%emt 0:00:06]} 30. Nf3 {[%emt 0:01:00]} Kf6 {[%emt 0:00:52]} 31. Nxd4 {[%emt 0:01:01]} exd4 {[%emt 0:00:06]} 32. f4 {[%emt 0:03:30]} Rd8 {[%emt 0:01:38]} 33. Rd1 {[%emt 0:02:10]} c5 {[%emt 0:00:07]} 34. Re1 {[%emt 0:00:04]} Rd7 {[%emt 0:01:33]} 35. Kf2 {[%emt 0:00:29]} Re7 {[%emt 0:00:06]} 36. Rxe7 {[%emt 0:00:48]} Kxe7 {[%emt 0:00:06]} 37. a4 {[%emt 0:00:08]} h4 {[%emt 0:00:57]} 38. h3 {[%emt 0:00:01]} d5 {[%emt 0:02:30]} 39. Ke2 {[%emt 0:01:05]} Kd6 {[%emt 0:00:22]} 40. Kd3 {[%emt 0:00:07]} b6 {[%emt 0:00:35]} 41. Kd2 {[%emt 0:00:17]} b5 {[%emt 0:00:38]} 42. cxb5 {[%emt 0:00:16]} c4 {[%emt 0:00:21]} 43. bxc4 {[%emt 0:00:40]} dxc4 {[%emt 0:00:05]} 44. Kc2 {[%emt 0:01:34]} Kc5 {[%emt 0:00:03]} 45. Kd2 {[%emt 0:00:09]} d3 {[%emt 0:00:29]} 46. Kc3 {[%emt 0:00:44]} Kd5 {[%emt 0:00:06]} 47. Kd2 {[%emt 0:00:13]} Kd4 {[%emt 0:02:00]} 48. b6 {[%emt 0:00:13]} c3+ {[%emt 0:00:03]} 49. Kd1 {[%emt 0:00:29]} Ke3 {[%emt 0:00:14]} 50. b7 {[%emt 0:00:06]} c2+ {[%emt 0:00:29]} 51. Kc1 {[%emt 0:00:05]} Ke2 {[%emt 0:00:32]} 52. b8=Q {[%emt 0:00:08]} d2+ {[%emt 0:00:10]} 53. Kxc2 {[%emt 0:00:04]} d1=Q+ {[%emt 0:00:06]} 54. Kb2 {[%emt 0:01:32]} Qd2+ {[%emt 0:01:44]} 55. Kb3 {[%emt 0:01:45]} Qd1+ {[%emt 0:00:15]} 56. Kb2 {[%emt 0:00:21]} Qd2+ {[%emt 0:01:02]} 57. Kb3 {[%emt 0:00:11]} Qd5+ {[%emt 0:00:24]} 58. Kc3 {[%emt 0:01:30]} Qd2+ {[%emt 0:00:22]} 59. Kb3 {[%emt 0:00:21]} 1/2-1/2

[Event "ONJK-A 2019"]
[Site "Borne"]
[Date "2019.08.07"]
[Round "4.10"]
[White "Boudry, William"]
[Black "Brachmann, Jules"]
[Result "1-0"]
[ECO "D06"]
[WhiteElo "2033"]
[BlackElo "1152"]
[Annotator "NA"]
[PlyCount "23"]
[EventDate "2019.08.05"]
[EventType "swiss"]
[EventCountry "NED"]
[SourceTitle "playchess.com"]
[Source "ChessBase"]
[SourceQuality "1"]
[TimeControl "5400+30"]

1. d4 {[%emt 0:00:00]} d5 {[%emt 0:06:33]} 2. Bf4 {[%emt 0:00:00]} Bf5 {[%emt 0:08:25]} 3. c4 {[%emt 0:00:03]} e6 {[%emt 0:11:49]} 4. Nc3 {[%emt 0:00:21]} Nf6 {[%emt 0:04:53]} 5. e3 {[%emt 0:00:54]} a6 {[%emt 0:13:42]} 6. Qb3 {[%emt 0:01:04]} b6 {[%emt 0:06:56]} 7. Nf3 {[%emt 0:03:28]} Nc6 {[%emt 0:03:28]} 8. Qa4 {[%emt 0:02:29]} Qd7 {[%emt 0:01:50]} 9. c5 {[%emt 0:00:47]} Be7 {[%emt 0:11:08]} 10. Bb5 {[%emt 0:02:54]} axb5 {[%emt 0:11:39]} 11. Qxa8+ {[%emt 0:00:11]} Nd8 {[%emt 0:02:55]} 12. Ne5 {[%emt 0:00:10]} 1-0

[Event "ONJK-A 2019"]
[Site "Borne"]
[Date "2019.08.07"]
[Round "4.11"]
[White "Segers, Job"]
[Black "Vitharana, Annelies"]
[Result "0-1"]
[ECO "B13"]
[WhiteElo "1618"]
[BlackElo "1768"]
[Annotator "NA"]
[PlyCount "66"]
[EventDate "2019.08.05"]
[EventType "swiss"]
[EventCountry "NED"]
[SourceTitle "playchess.com"]
[Source "ChessBase"]
[SourceQuality "1"]
[TimeControl "5400+30"]

1. e4 {[%emt 0:00:00]} c6 {[%emt 0:00:00]} 2. d4 {[%emt 0:00:00]} d5 {[%emt 0:00:00]} 3. exd5 {[%emt 0:00:00]} cxd5 {[%emt 0:00:00]} 4. Bd3 {[%emt 0:00:00]} Nf6 {[%emt 0:00:05]} 5. c3 {[%emt 0:00:00]} Nc6 {[%emt 0:00:10]} 6. Bf4 {[%emt 0:00:00]} Bg4 {[%emt 0:00:23]} 7. Qb3 {[%emt 0:00:00]} Na5 {[%emt 0:00:59]} 8. Qa4+ {[%emt 0:00:58]} Bd7 {[%emt 0:03:30]} 9. Qc2 {[%emt 0:02:03]} e6 {[%emt 0:02:14]} 10. Nf3 {[%emt 0:02:11]} Be7 {[%emt 0:02:50]} 11. O-O {[%emt 0:00:40]} O-O {[%emt 0:00:48]} 12. Qe2 {[%emt 0:00:25]} Rc8 {[%emt 0:05:43]} 13. Nbd2 {[%emt 0:04:03]} a6 {[%emt 0:05:21]} 14. Ne5 {[%emt 0:03:28]} b5 {[%emt 0:06:35]} 15. Rac1 {[%emt 0:02:28]} Nc4 {[%emt 0:05:19]} 16. Ndf3 {[%emt 0:01:52]} h6 {[%emt 0:05:20]} 17. g4 {[%emt 0:16:12]} Nd6 {[%emt 0:09:18]} 18. g5 {[%emt 0:02:44]} Nh5 {[%emt 0:11:59]} 19. Bd2 {[%emt 0:03:09]} hxg5 {[%emt 0:04:21]} 20. Nxg5 {[%emt 0:02:19]} Nf6 {[%emt 0:02:13]} 21. Qf3 {[%emt 0:07:03]} Be8 {[%emt 0:09:59]} 22. Kh1 {[%emt 0:01:39]} Nde4 {[%emt 0:03:24]} 23. Nxe4 {[%emt 0:02:09]} dxe4 {[%emt 0:03:01]} 24. Bxe4 {[%emt 0:06:53]} Nxe4 {[%emt 0:00:25]} 25. Qxe4 {[%emt 0:00:23]} f6 {[%emt 0:04:32]} 26. Nf3 {[%emt 0:00:12]} Bc6 {[%emt 0:00:40]} 27. Qxe6+ {[%emt 0:05:44]} Rf7 {[%emt 0:00:38]} 28. Qg4 {[%emt 0:15:59]} f5 {[%emt 0:03:11]} 29. Qg3 {[%emt 0:01:27]} Qd5 {[%emt 0:00:50]} 30. Kg2 {[%emt 0:00:50]} Rf6 {[%emt 0:01:46]} 31. h4 {[%emt 0:00:46]} Rg6 {[%emt 0:02:29]} 32. Qxg6 {[%emt 0:00:50]} Qxf3+ {[%emt 0:00:16]} 33. Kh2 {[%emt 0:00:08]} Bd6+ {[%emt 0:00:14]} 0-1

[Event "ONJK-A 2019"]
[Site "Borne"]
[Date "2019.08.07"]
[Round "4.12"]
[White "Nies, Levi"]
[Black "Hofstra, Tijmen"]
[Result "0-1"]
[ECO "B03"]
[WhiteElo "1516"]
[BlackElo "1732"]
[Annotator "NA"]
[PlyCount "74"]
[EventDate "2019.08.05"]
[EventType "swiss"]
[EventCountry "NED"]
[SourceTitle "playchess.com"]
[Source "ChessBase"]
[SourceQuality "1"]
[TimeControl "5400+30"]

1. e4 {[%emt 0:00:59]} Nf6 {[%emt 0:00:00]} 2. e5 {[%emt 0:00:04]} Nd5 {[%emt 0:00:00]} 3. c4 {[%emt 0:00:02]} Nb6 {[%emt 0:00:00]} 4. d4 {[%emt 0:00:04]} d6 {[%emt 0:00:04]} 5. f4 {[%emt 0:00:05]} dxe5 {[%emt 0:00:40]} 6. fxe5 {[%emt 0:00:05]} Bf5 {[%emt 0:00:04]} 7. Nf3 {[%emt 0:00:35]} e6 {[%emt 0:00:05]} 8. Nc3 {[%emt 0:01:01]} c5 {[%emt 0:00:11]} 9. Be3 {[%emt 0:04:29]} N8d7 {[%emt 0:01:58]} 10. Nb5 {[%emt 0:12:21]} cxd4 {[%emt 0:02:07]} 11. Bxd4 {[%emt 0:00:59]} Bb4+ {[%emt 0:00:08]} 12. Bc3 {[%emt 0:01:36]} Bxc3+ {[%emt 0:00:06]} 13. Nxc3 {[%emt 0:11:11]} O-O {[%emt 0:02:49]} 14. Be2 {[%emt 0:00:36]} Bg4 {[%emt 0:00:17]} 15. Nd4 {[%emt 0:01:02]} Bxe2 {[%emt 0:00:14]} 16. Qxe2 {[%emt 0:00:01]} Qh4+ {[%emt 0:00:09]} 17. Qf2 {[%emt 0:00:05]} Qxf2+ {[%emt 0:00:06]} 18. Kxf2 {[%emt 0:00:05]} Nxe5 {[%emt 0:00:05]} 19. b3 {[%emt 0:00:28]} Rad8 {[%emt 0:00:17]} 20. Rad1 {[%emt 0:00:50]} Ng4+ {[%emt 0:00:09]} 21. Ke2 {[%emt 0:01:44]} g6 {[%emt 0:01:25]} 22. c5 {[%emt 0:01:51]} Nd5 {[%emt 0:00:12]} 23. Nxd5 {[%emt 0:00:01]} Rxd5 {[%emt 0:00:09]} 24. h3 {[%emt 0:00:02]} Nf6 {[%emt 0:01:01]} 25. b4 {[%emt 0:00:28]} Rfd8 {[%emt 0:00:13]} 26. Nb5 {[%emt 0:00:43]} a6 {[%emt 0:00:30]} 27. Nd6 {[%emt 0:00:37]} b6 {[%emt 0:01:28]} 28. Nc4 {[%emt 0:03:01]} bxc5 {[%emt 0:00:20]} 29. bxc5 {[%emt 0:00:02]} Rc8 {[%emt 0:00:29]} 30. Nd6 {[%emt 0:04:22]} Rcxc5 {[%emt 0:00:12]} 31. Rhf1 {[%emt 0:00:10]} Rc2+ {[%emt 0:01:11]} 32. Ke3 {[%emt 0:01:12]} Rxd1 {[%emt 0:01:29]} 33. Rxd1 {[%emt 0:00:01]} Rxg2 {[%emt 0:00:29]} 34. Kf3 {[%emt 0:01:19]} Rxa2 {[%emt 0:00:10]} 35. Nb7 {[%emt 0:00:28]} Nd5 {[%emt 0:00:16]} 36. Nc5 {[%emt 0:00:56]} Ra3+ {[%emt 0:00:05]} 37. Nd3 {[%emt 0:00:15]} Nb4 {[%emt 0:00:06]} 0-1

[Event "ONJK-A 2019"]
[Site "Borne"]
[Date "2019.08.07"]
[Round "5.1"]
[White "Maerevoet, Sim"]
[Black "Hilwerda, Jonas"]
[Result "1/2-1/2"]
[ECO "E70"]
[WhiteElo "2321"]
[BlackElo "2275"]
[Annotator "NA"]
[PlyCount "81"]
[EventDate "2019.08.05"]
[EventType "swiss"]
[EventCountry "NED"]
[SourceTitle "playchess.com"]
[Source "ChessBase"]
[SourceQuality "1"]
[TimeControl "5400+30"]

1. d4 {[%emt 0:00:00]} Nf6 {[%emt 0:00:00]} 2. c4 {[%emt 0:00:00]} g6 {[%emt 0:00:44]} 3. Nc3 {[%emt 0:00:00]} Bg7 {[%emt 0:00:42]} 4. e4 {[%emt 0:00:04]} d6 {[%emt 0:00:19]} 5. Bd3 {[%emt 0:00:07]} O-O {[%emt 0:01:13]} 6. Nge2 {[%emt 0:00:11]} e5 {[%emt 0:01:47]} 7. d5 {[%emt 0:00:07]} Nh5 {[%emt 0:01:34]} 8. O-O {[%emt 0:00:31]} f5 {[%emt 0:00:50]} 9. exf5 {[%emt 0:00:05]} gxf5 {[%emt 0:00:11]} 10. f3 {[%emt 0:00:06]} a5 {[%emt 0:01:49]} 11. a3 {[%emt 0:00:21]} Nd7 {[%emt 0:01:54]} 12. Be3 {[%emt 0:08:07]} Nc5 {[%emt 0:02:00]} 13. Bc2 {[%emt 0:00:13]} Qh4 {[%emt 0:01:52]} 14. Rb1 {[%emt 0:21:26]} a4 {[%emt 0:15:07]} 15. Nxa4 {[%emt 0:08:34]} Nxa4 {[%emt 0:00:23]} 16. Bxa4 {[%emt 0:00:05]} Qxc4 {[%emt 0:00:24]} 17. Bb3 {[%emt 0:01:25]} Qh4 {[%emt 0:00:51]} 18. f4 {[%emt 0:09:43]} Bd7 {[%emt 0:04:38]} 19. Rc1 {[%emt 0:04:22]} Rac8 {[%emt 0:03:00]} 20. Qd2 {[%emt 0:09:03]} Bb5 {[%emt 0:22:17]} 21. Bc4 {[%emt 0:04:56]} Bxc4 {[%emt 0:00:59]} 22. Rxc4 {[%emt 0:00:06]} Nf6 {[%emt 0:00:21]} 23. h3 {[%emt 0:02:41]} Ne4 {[%emt 0:01:11]} 24. Qc2 {[%emt 0:01:17]} Rf7 {[%emt 0:02:18]} 25. Bb6 {[%emt 0:08:00]} Bh6 {[%emt 0:05:00]} 26. fxe5 {[%emt 0:03:05]} dxe5 {[%emt 0:00:55]} 27. d6 {[%emt 0:03:31]} c5 {[%emt 0:07:50]} 28. Qd3 {[%emt 0:04:22]} Rcf8 {[%emt 0:11:18]} 29. d7 {[%emt 0:01:14]} Bg5 {[%emt 0:00:51]} 30. Qd5 {[%emt 0:05:13]} Qh5 {[%emt 0:05:12]} 31. Rc2 {[%emt 0:04:12]} Bd8 {[%emt 0:03:36]} 32. Bxc5 {[%emt 0:00:05]} Nxc5 {[%emt 0:00:29]} 33. Qxc5 {[%emt 0:00:04]} Rxd7 {[%emt 0:00:45]} 34. Qxe5 {[%emt 0:00:24]} Re7 {[%emt 0:01:41]} 35. Qd5+ {[%emt 0:00:15]} Qf7 {[%emt 0:00:42]} 36. Rxf5 {[%emt 0:01:24]} Qxd5 {[%emt 0:00:06]} 37. Rxd5 {[%emt 0:00:04]} Bb6+ {[%emt 0:00:05]} 38. Kh2 {[%emt 0:00:50]} Bc7+ {[%emt 0:02:22]} 39. Kg1 {[%emt 0:00:48]} Bb6+ {[%emt 0:00:01]} 40. Kh2 {[%emt 0:00:13]} Bc7+ {[%emt 0:00:01]} 41. Kg1 {[%emt 0:01:49]} 1/2-1/2

[Event "ONJK-A 2019"]
[Site "Borne"]
[Date "2019.08.07"]
[Round "5.2"]
[White "Baselmans, Luuk"]
[Black "Noordenbos, Daan"]
[Result "1/2-1/2"]
[ECO "C06"]
[WhiteElo "2212"]
[BlackElo "2042"]
[Annotator "NA"]
[PlyCount "89"]
[EventDate "2019.08.05"]
[EventType "swiss"]
[EventCountry "NED"]
[SourceTitle "playchess.com"]
[Source "ChessBase"]
[SourceQuality "1"]
[TimeControl "5400+30"]

1. e4 {[%emt 0:00:00]} e6 {[%emt 0:00:00]} 2. d4 {[%emt 0:00:00]} d5 {[%emt 0:00:00]} 3. Nd2 {[%emt 0:00:00]} Nf6 {[%emt 0:00:00]} 4. e5 {[%emt 0:00:00]} Nfd7 {[%emt 0:00:00]} 5. Bd3 {[%emt 0:00:05]} c5 {[%emt 0:00:20]} 6. c3 {[%emt 0:00:05]} Nc6 {[%emt 0:00:04]} 7. Ne2 {[%emt 0:00:15]} cxd4 {[%emt 0:00:08]} 8. cxd4 {[%emt 0:00:06]} f6 {[%emt 0:00:10]} 9. exf6 {[%emt 0:00:24]} Nxf6 {[%emt 0:00:53]} 10. Nf3 {[%emt 0:00:20]} Bd6 {[%emt 0:00:21]} 11. O-O {[%emt 0:00:10]} O-O {[%emt 0:00:31]} 12. Bf4 {[%emt 0:00:20]} Bxf4 {[%emt 0:00:11]} 13. Nxf4 {[%emt 0:00:06]} Ne4 {[%emt 0:00:06]} 14. Qc1 {[%emt 0:00:13]} Ng5 {[%emt 0:11:20]} 15. Nxg5 {[%emt 0:00:29]} Qxg5 {[%emt 0:00:13]} 16. Bxh7+ {[%emt 0:00:08]} Kxh7 {[%emt 0:02:30]} 17. Nxe6 {[%emt 0:00:08]} Qxc1 {[%emt 0:00:19]} 18. Nxf8+ {[%emt 0:00:19]} Kg8 {[%emt 0:00:05]} 19. Raxc1 {[%emt 0:00:19]} Kxf8 {[%emt 0:01:17]} 20. Rfe1 {[%emt 0:03:23]} Bf5 {[%emt 0:04:44]} 21. Rc3 {[%emt 0:04:16]} Re8 {[%emt 0:06:42]} 22. Rxe8+ {[%emt 0:03:30]} Kxe8 {[%emt 0:00:16]} 23. Rc1 {[%emt 0:02:20]} Kf7 {[%emt 0:16:36]} 24. f3 {[%emt 0:02:32]} Kf6 {[%emt 0:01:31]} 25. g4 {[%emt 0:01:19]} Bd7 {[%emt 0:02:32]} 26. Rd1 {[%emt 0:02:57]} Kg5 {[%emt 0:02:14]} 27. Kf2 {[%emt 0:00:37]} Kf4 {[%emt 0:00:39]} 28. h4 {[%emt 0:00:28]} g6 {[%emt 0:01:58]} 29. Re1 {[%emt 0:49:57]} Nxd4 {[%emt 0:02:11]} 30. Re7 {[%emt 0:00:20]} Bc6 {[%emt 0:00:35]} 31. Rg7 {[%emt 0:01:36]} Nxf3 {[%emt 0:00:26]} 32. h5 {[%emt 0:00:26]} Ne5 {[%emt 0:04:55]} 33. Ke2 {[%emt 0:10:09]} Nxg4 {[%emt 0:01:57]} 34. Rxg6 {[%emt 0:00:22]} Be8 {[%emt 0:00:45]} 35. Rg7 {[%emt 0:00:23]} b5 {[%emt 0:00:52]} 36. Rxa7 {[%emt 0:00:39]} Bxh5 {[%emt 0:00:09]} 37. Rb7 {[%emt 0:00:56]} Ne5+ {[%emt 0:01:52]} 38. Kd2 {[%emt 0:01:35]} Be8 {[%emt 0:00:26]} 39. b3 {[%emt 0:01:55]} Ke4 {[%emt 0:01:20]} 40. a4 {[%emt 0:01:53]} bxa4 {[%emt 0:00:38]} 41. bxa4 {[%emt 0:00:36]} Nc4+ {[%emt 0:00:32]} 42. Kc3 {[%emt 0:00:11]} Bxa4 {[%emt 0:00:07]} 43. Rb4 {[%emt 0:00:07]} Bc6 {[%emt 0:00:07]} 44. Rxc4+ {[%emt 0:00:05]} dxc4 {[%emt 0:00:03]} 45. Kxc4 {[%emt 0:00:05]} 1/2-1/2

[Event "ONJK-A 2019"]
[Site "Borne"]
[Date "2019.08.07"]
[Round "5.3"]
[White "De Bock, Thijs"]
[Black "Shakhverdian, William"]
[Result "1/2-1/2"]
[ECO "A23"]
[WhiteElo "1870"]
[BlackElo "2001"]
[Annotator "NA"]
[PlyCount "76"]
[EventDate "2019.08.05"]
[EventType "swiss"]
[EventCountry "NED"]
[SourceTitle "playchess.com"]
[Source "ChessBase"]
[SourceQuality "1"]
[TimeControl "5400+30"]

1. c4 {[%emt 0:00:00]} e5 {[%emt 0:00:00]} 2. g3 {[%emt 0:00:00]} Nf6 {[%emt 0:00:36]} 3. Bg2 {[%emt 0:00:00]} Bc5 {[%emt 0:00:49]} 4. Nc3 {[%emt 0:00:28]} c6 {[%emt 0:00:06]} 5. Nf3 {[%emt 0:03:46]} e4 {[%emt 0:00:47]} 6. Ng5 {[%emt 0:00:03]} d5 {[%emt 0:01:26]} 7. cxd5 {[%emt 0:01:48]} cxd5 {[%emt 0:01:08]} 8. d3 {[%emt 0:00:06]} h6 {[%emt 0:01:29]} 9. Nh3 {[%emt 0:00:07]} O-O {[%emt 0:02:45]} 10. O-O {[%emt 0:00:46]} Bf5 {[%emt 0:02:50]} 11. Nf4 {[%emt 0:00:43]} Nc6 {[%emt 0:12:35]} 12. Qa4 {[%emt 0:07:46]} exd3 {[%emt 0:06:17]} 13. exd3 {[%emt 0:00:15]} d4 {[%emt 0:00:54]} 14. Ne4 {[%emt 0:02:24]} Bxe4 {[%emt 0:05:19]} 15. dxe4 {[%emt 0:00:51]} Re8 {[%emt 0:00:10]} 16. Nd3 {[%emt 0:00:20]} Bb6 {[%emt 0:01:03]} 17. Re1 {[%emt 0:04:42]} Ng4 {[%emt 0:01:32]} 18. Bf4 {[%emt 0:05:06]} Nge5 {[%emt 0:02:53]} 19. Nxe5 {[%emt 0:00:54]} Nxe5 {[%emt 0:00:07]} 20. Rad1 {[%emt 0:01:42]} Rc8 {[%emt 0:02:08]} 21. Bxe5 {[%emt 0:03:34]} Rxe5 {[%emt 0:00:07]} 22. Rd3 {[%emt 0:00:23]} Qc7 {[%emt 0:02:25]} 23. f4 {[%emt 0:02:16]} Ra5 {[%emt 0:00:43]} 24. Qb3 {[%emt 0:02:18]} Qc2 {[%emt 0:00:42]} 25. e5 {[%emt 0:00:16]} Qxb3 {[%emt 0:10:25]} 26. axb3 {[%emt 0:00:15]} Rc2 {[%emt 0:00:09]} 27. f5 {[%emt 0:00:13]} Kf8 {[%emt 0:05:33]} 28. Bxb7 {[%emt 0:01:58]} Rxb2 {[%emt 0:06:35]} 29. g4 {[%emt 0:04:12]} Rc5 {[%emt 0:03:23]} 30. h4 {[%emt 0:06:14]} Rc3 {[%emt 0:00:12]} 31. e6 {[%emt 0:01:14]} Ke7 {[%emt 0:00:42]} 32. exf7+ {[%emt 0:01:12]} Kxf7 {[%emt 0:00:07]} 33. Bd5+ {[%emt 0:00:06]} Kf8 {[%emt 0:00:13]} 34. Red1 {[%emt 0:01:16]} Rxd3 {[%emt 0:02:41]} 35. Rxd3 {[%emt 0:00:02]} Bd8 {[%emt 0:00:24]} 36. Kh1 {[%emt 0:01:33]} Bf6 {[%emt 0:01:36]} 37. g5 {[%emt 0:00:07]} hxg5 {[%emt 0:01:54]} 38. hxg5 {[%emt 0:00:05]} Bxg5 {[%emt 0:01:12]} 1/2-1/2